bitfinex-derivatives/quotes_BTCF0:USTF0_20210105
["timestamp","ask_amount","ask_price","bid_price","bid_amount"]
[1609824595469,0.13632608,30950.0,30941.0,0.13632608]
[1609824596864,0.10084,30956.0,30941.0,0.13632608]
[1609824597463,0.10084,30956.0,30955.0,0.13632608]
[1609824597660,0.10084,30956.0,30933.0,0.12378]
[1609824598665,4.6895,30962.0,30933.0,0.12378]
[1609824599465,0.15319,30963.0,30953.0,0.13632608]
[1609824599663,0.15319,30963.0,30939.0,4.9118]
[1609824599664,0.2807,30978.0,30939.0,4.9118]
[1609824601463,0.13632608,30952.0,30945.0,0.13632608]
[1609824601663,0.13632608,30952.0,30949.0,0.5777]
[1609824602463,0.13632608,30952.0,30945.0,0.13632608]
[1609824602664,0.14454,30954.0,30945.0,0.13632608]
[1609824603163,0.14454,30954.0,30940.0,0.15985]
[1609824603664,0.14454,30954.0,30953.0,0.13632608]
[1609824604265,0.13632608,30959.0,30953.0,0.13632608]
[1609824605868,0.2807,30978.0,30949.0,4.49168]
[1609824606371,0.2807,30978.0,30958.0,0.13632608]
[1609824606971,0.2807,30978.0,30949.0,0.12698]
[1609824607168,0.2807,30978.0,30953.0,4.5391]
[1609824607369,0.48474664,30966.0,30953.0,4.5391]
[1609824607771,0.48474664,30966.0,30949.0,0.12698]
[1609824607969,0.48474664,30966.0,30955.0,5.1465]
[1609824608370,0.48474664,30966.0,30965.0,0.13632608]
[1609824608972,0.48474664,30966.0,30960.0,4.7608]
[1609824610374,0.48474664,30966.0,30965.0,0.13632608]
[1609824610775,0.48474664,30966.0,30960.0,4.7608]
[1609824611174,0.38529,30970.0,30960.0,4.7608]
[1609824611877,0.11159,30970.0,30960.0,4.7608]
[1609824612077,0.01886459,30991.0,30958.0,0.15457]
[1609824612276,0.01886459,30991.0,30970.0,5.3282]
[1609824612475,0.13632608,30977.0,30971.0,0.13632608]
[1609824612676,0.23391608,30977.0,30971.0,0.13632608]
[1609824614577,0.09759,30977.0,30971.0,0.13632608]
[1609824615278,0.10433,30985.0,30971.0,0.13632608]
[1609824616379,0.10433,30985.0,30980.0,0.13632608]
[1609824616579,0.10433,30985.0,30983.0,0.6864]
[1609824617181,0.10433,30985.0,30980.0,0.13632608]
[1609824617579,0.10433,30985.0,30968.0,0.13009]
[1609824618484,0.10433,30985.0,30970.0,0.13632608]
[1609824618684,0.10433,30985.0,30973.0,3.926]
[1609824620386,0.57936387,30992.0,30973.0,3.926]
[1609824620586,0.57936387,30992.0,30975.0,0.13632608]
[1609824620989,0.2928,31001.0,30975.0,0.13632608]
[1609824621588,0.48426325,30997.0,30975.0,0.13632608]
[1609824621790,0.59100325,30997.0,30982.0,3.97]
[1609824621989,0.59100325,30997.0,30975.0,0.13632608]
[1609824622188,0.59100325,30997.0,30983.0,4.1695]
[1609824622388,0.59100325,30997.0,30975.0,0.13632608]
[1609824622590,0.13632608,30992.0,30988.0,0.13632608]
[1609824623794,0.13632608,30992.0,30990.0,4.6119]
[1609824623993,0.10674,30997.0,30990.0,4.6119]
[1609824624593,0.10674,30997.0,30993.0,0.13632608]
[1609824626900,0.13632608,31002.0,30993.0,0.13632608]
[1609824627901,0.2913,31016.0,30998.0,5.2528]
[1609824628101,0.2913,31016.0,30989.0,0.10086]
[1609824628303,0.42373,31016.0,31001.0,3.7119]
[1609824628501,0.13632608,31003.0,31001.0,3.84822608]
[1609824629303,0.10701,31009.0,31001.0,3.84822608]
[1609824630507,0.10701,31009.0,31008.0,0.13632608]
[1609824630706,0.10701,31009.0,31008.0,0.67032608]
[1609824630905,0.13243,31016.0,31008.0,0.534]
[1609824632607,0.13243,31016.0,31013.0,0.13632608]
[1609824633010,0.13632608,31020.0,31013.0,0.13632608]
[1609824633208,0.2828,31035.0,31015.0,4.3552]
[1609824633410,0.2772,31047.0,31015.0,4.3552]
[1609824633808,0.2829,31046.0,31015.0,4.3552]
[1609824634211,0.01940829,31038.0,31015.0,4.3552]
[1609824634811,0.4835342,31043.0,31012.0,0.11092]
[1609824635010,0.4835342,31043.0,31031.0,4.7401]
[1609824635714,0.01951313,31053.0,31031.0,4.7401]
[1609824636413,0.01951313,31053.0,31030.0,0.15283]
[1609824636614,0.13632608,31046.0,31042.0,0.13632608]
[1609824636813,0.01951313,31053.0,31045.0,5.1502]
[1609824637616,0.01951313,31053.0,31045.0,0.10757]
[1609824637817,0.2806,31072.0,31045.0,0.10757]
[1609824637818,0.59906364,31061.0,31045.0,0.10757]
[1609824638418,0.59906364,31061.0,31053.0,4.4899]
[1609824638618,0.59906364,31061.0,31060.0,0.13632608]
[1609824638820,0.59252355,31097.0,31066.0,5.1342]
[1609824639118,0.4829618,31080.0,31066.0,5.1342]
[1609824640522,0.4829618,31080.0,31072.0,0.13632608]
[1609824640721,0.5925095,31099.0,31072.0,0.13632608]
[1609824641122,0.5925095,31099.0,31073.0,3.7608]
[1609824641322,0.5925095,31099.0,31072.0,0.13632608]
[1609824641524,0.1522,31079.0,31069.0,4.4181]
[1609824641724,0.1522,31079.0,31052.0,0.11238]
[1609824641924,0.1522,31079.0,31058.0,5.3854]
[1609824642626,0.13632608,31060.0,31059.0,0.13632608]
[1609824643027,0.1522,31079.0,31059.0,0.13632608]
[1609824643225,0.1522,31079.0,31059.0,0.28584608]
[1609824644629,0.13632608,31063.0,31059.0,0.28584608]
[1609824646331,0.1522,31079.0,31059.0,0.28584608]
[1609824646531,3.8199,31087.0,31059.0,0.28584608]
[1609824646731,0.13632608,31072.0,31065.0,0.13632608]
[1609824646931,0.14118,31080.0,31059.0,0.14952]
[1609824647232,0.14118,31080.0,31061.0,3.7607]
[1609824648634,0.14118,31080.0,31063.0,0.13632608]
[1609824648834,0.14118,31080.0,31061.0,3.7607]
[1609824650636,0.13632608,31062.0,31061.0,3.7607]
[1609824652539,0.13632608,31062.0,31059.0,0.14952]
[1609824652741,0.13632608,31062.0,31052.0,0.11238]
[1609824652939,0.10736,31066.0,31045.0,0.10757]
[1609824653139,0.10736,31066.0,31043.0,4.1016]
[1609824653340,0.10736,31066.0,31011.0,2.00042561]
[1609824653538,4.724,31063.0,31026.0,4.4976]
[1609824654739,4.724,31063.0,31030.0,0.13632608]
[1609824656643,0.13632608,31039.0,31038.0,0.13632608]
[1609824656943,0.13632608,31039.0,31026.0,4.4976]
[1609824658743,0.13632608,31039.0,31038.0,0.13632608]
[1609824659545,0.13632608,31039.0,31032.0,0.12277]
[1609824660649,0.13632608,31039.0,31038.0,0.13632608]
[1609824661451,0.13632608,31039.0,31032.0,0.12277]
[1609824662654,0.13632608,31039.0,31038.0,0.13632608]
[1609824663153,0.13632608,31039.0,31032.0,0.12277]
[1609824664156,0.13632608,31039.0,31025.0,0.15237]
[1609824664355,0.13632608,31039.0,31015.0,4.353]
[1609824664757,0.13632608,31023.0,31020.0,0.13632608]
[1609824665355,0.13632608,31023.0,31002.0,4.363]
[1609824666657,4.188,31030.0,31006.0,0.13632608]
[1609824667058,4.188,31030.0,31006.0,0.26032608]
[1609824667457,0.10389,31032.0,31011.0,4.5658]
[1609824668160,0.48379294,31027.0,31011.0,4.5658]
[1609824668760,0.62011902,31027.0,31026.0,0.13632608]
[1609824668960,0.48379294,31027.0,31026.0,0.25800608]
[1609824669564,0.48379294,31027.0,31011.0,3.68748]
[1609824669763,0.2703,31038.0,31011.0,3.68748]
[1609824670765,0.2703,31038.0,31026.0,0.13632608]
[1609824670966,0.2703,31038.0,31026.0,0.27360608]
[1609824671167,4.9524,31057.0,31026.0,0.27360608]
[1609824671369,0.2716,31056.0,31026.0,0.27360608]
[1609824671967,0.2716,31056.0,31026.0,4.91380608]
[1609824672167,0.2716,31056.0,31026.0,4.77748]
[1609824672566,0.2915,31065.0,31026.0,4.77748]
[1609824672766,0.2915,31065.0,31039.0,0.13632608]
[1609824672967,0.2915,31065.0,31039.0,0.23959608]
[1609824673267,0.48350593,31045.0,31039.0,0.23959608]
[1609824673466,0.48350593,31045.0,31039.0,0.10327]
[1609824674067,3.7675,31048.0,31039.0,0.10327]
[1609824674568,3.7675,31048.0,31026.0,0.13728]
[1609824674768,0.13632608,31027.0,31026.0,0.13728]
[1609824674968,0.13632608,31027.0,31009.0,2.08864691]
[1609824676770,0.13632608,31013.0,31012.0,0.13632608]
[1609824677569,0.13632608,31013.0,31006.0,2.21920653]
[1609824678672,0.13632608,31007.0,31006.0,2.21920653]
[1609824679073,0.13632608,31007.0,31006.0,0.21700653]
[1609824679273,5.11072608,31007.0,31006.0,0.21700653]
[1609824679672,0.13632608,31007.0,30985.0,2.30096723]
[1609824679871,4.8374,31002.0,30985.0,2.30096723]
[1609824680070,0.13632608,31007.0,30985.0,2.30096723]
[1609824680272,4.293,30999.0,30985.0,0.09888]
[1609824680771,0.13632608,30986.0,30985.0,0.09888]
[1609824682374,4.293,30999.0,30985.0,0.09888]
[1609824682775,0.13632608,30986.0,30985.0,0.09888]
[1609824683876,0.13632608,30986.0,30981.0,0.13632608]
[1609824684779,0.13632608,30982.0,30981.0,0.13632608]
[1609824685780,0.13632608,30982.0,30970.0,0.2916]
[1609824686683,0.13632608,30982.0,30964.0,2.31414814]
[1609824686885,0.13632608,30971.0,30964.0,2.31414814]
[1609824687382,0.15795,30985.0,30964.0,2.31414814]
[1609824688184,5.2176,30971.0,30964.0,2.31414814]
[1609824688383,0.13375,30971.0,30964.0,2.31414814]
[1609824688784,0.13632608,30965.0,30964.0,2.20794814]
[1609824689385,0.13632608,30965.0,30964.0,2.20134814]
[1609824689985,0.13632608,30965.0,30964.0,2.01154814]
[1609824691187,0.13632608,30965.0,30932.0,0.13632608]
[1609824691188,0.13632608,30965.0,30960.0,2.50982191]
[1609824691387,4.0452,30962.0,30960.0,2.50982191]
[1609824691787,4.16896,30962.0,30960.0,2.50982191]
[1609824691989,0.12376,30962.0,30960.0,2.02473039]
[1609824692789,0.13632608,30961.0,30960.0,2.02473039]
[1609824692991,0.13632608,30961.0,30913.0,2.10204003]
[1609824693389,0.13632608,30961.0,30919.0,0.2846]
[1609824693790,0.13632608,30961.0,30921.0,2.10190053]
[1609824694792,0.13632608,30941.0,30921.0,2.10190053]
[1609824694990,0.12376,30962.0,30922.0,2.10199331]
[1609824695190,0.12376,30962.0,30940.0,0.29080608]
[1609824696191,0.77698399,30970.0,30940.0,0.29080608]
[1609824696392,0.48468399,30970.0,30940.0,0.29080608]
[1609824696793,0.13632608,30959.0,30953.0,0.13632608]
[1609824697301,0.48468399,30970.0,30953.0,0.13632608]
[1609824697911,4.4892,30963.0,30951.0,0.10748]
[1609824698696,4.58772,30963.0,30940.0,0.15448]
[1609824698899,0.13632608,30941.0,30940.0,0.15448]
[1609824699802,5.43342608,30941.0,30940.0,0.15448]
[1609824700199,5.43342608,30941.0,30931.0,2.10258107]
[1609824701003,0.13632608,30932.0,30931.0,2.10258107]
[1609824701199,4.27492608,30932.0,30931.0,2.10258107]
[1609824701400,4.1386,30932.0,30918.0,2.09940911]
[1609824701801,4.1386,30932.0,30905.0,0.13632608]
[1609824702201,4.1386,30932.0,30902.0,2.09190335]
[1609824702902,0.11558,30938.0,30902.0,2.09190335]
[1609824703104,0.13632608,30903.0,30902.0,0.13364]
[1609824703703,0.11407,30926.0,30902.0,0.13364]
[1609824703902,4.01417,30926.0,30902.0,0.13364]
[1609824705005,0.13632608,30905.0,30904.0,0.13632608]
[1609824705203,4.01417,30926.0,30904.0,0.13632608]
[1609824705704,4.01417,30926.0,30902.0,0.13364]
[1609824706304,0.48538977,30925.0,30902.0,0.13364]
[1609824707105,0.13632608,30903.0,30902.0,0.13364]
[1609824708307,0.13632608,30903.0,30897.0,0.13632608]
[1609824708507,0.6336,30902.0,30892.0,0.2968]
[1609824709109,0.11807,30919.0,30883.0,2.0860502]
[1609824709308,5.3887,30904.0,30883.0,2.1855702]
[1609824709510,0.13632608,30884.0,30883.0,2.1855702]
[1609824712415,4.99462608,30884.0,30883.0,2.1855702]
[1609824713018,4.8583,30884.0,30883.0,0.09952]
[1609824713316,0.09834,30895.0,30883.0,0.09952]
[1609824713516,0.13632608,30884.0,30883.0,0.09952]
[1609824713718,0.09834,30895.0,30883.0,0.09952]
[1609824713919,0.2777,30904.0,30883.0,0.09952]
[1609824714317,0.2777,30904.0,30883.0,0.13605]
[1609824714517,5.06593,30912.0,30883.0,0.13605]
[1609824714919,0.48591562,30891.0,30883.0,0.13605]
[1609824715518,0.6222417,30891.0,30890.0,0.13632608]
[1609824715718,5.06593,30912.0,30890.0,0.29651608]
[1609824717519,5.06593,30912.0,30898.0,0.13632608]
[1609824717520,0.13632608,30906.0,30898.0,0.13632608]
[1609824717722,0.14413,30912.0,30898.0,0.13632608]
[1609824717920,0.2743,30945.0,30898.0,0.29660608]
[1609824718520,0.2743,30945.0,30904.0,4.1681]
[1609824718922,0.48554469,30915.0,30904.0,4.1681]
[1609824719524,0.48554469,30915.0,30910.0,0.13632608]
[1609824719725,0.48554469,30915.0,30898.0,0.16028]
[1609824719924,0.10013,30925.0,30898.0,0.16028]
[1609824720124,4.9196,30908.0,30898.0,0.16028]
[1609824720724,0.12602,30916.0,30898.0,0.16028]
[1609824721625,0.13632608,30899.0,30898.0,0.16028]
[1609824722027,0.13632608,30899.0,30890.0,0.16019]
[1609824722228,0.13632608,30899.0,30887.0,0.13632608]
[1609824723529,0.13632608,30889.0,30887.0,0.13632608]
[1609824723929,0.11892,30907.0,30887.0,0.13632608]
[1609824725230,0.7298,30906.0,30883.0,5.21015]
[1609824726033,0.13632608,30884.0,30883.0,5.21015]
[1609824726232,0.13632608,30884.0,30883.0,0.13605]
[1609824726432,0.13632608,30884.0,30874.0,0.13632608]
[1609824726631,4.9472,30883.0,30874.0,0.13632608]
[1609824727132,4.81087392,30883.0,30874.0,0.13632608]
[1609824729533,0.13632608,30884.0,30874.0,0.13632608]
[1609824729735,0.4859716,30888.0,30874.0,0.13632608]
[1609824730135,0.4859716,30888.0,30887.0,0.13632608]
[1609824730335,0.2841,30938.0,30887.0,0.13632608]
[1609824730534,5.2279,30925.0,30887.0,0.27702608]
[1609824731739,0.0981,30937.0,30887.0,0.1407]
[1609824732139,0.13632608,30888.0,30887.0,0.1407]
[1609824732939,0.67232608,30888.0,30887.0,0.1407]
[1609824733740,0.13632608,30888.0,30887.0,0.1407]
[1609824733939,0.13632608,30892.0,30887.0,0.27702608]
[1609824735039,0.12384,30906.0,30887.0,0.27702608]
[1609824735941,0.13632608,30903.0,30902.0,0.13632608]
[1609824737743,0.48559912,30911.0,30902.0,0.13632608]
[1609824738144,0.48559912,30911.0,30909.0,0.13632608]
[1609824738344,0.13632608,30916.0,30909.0,0.13632608]
[1609824742450,0.13632608,30916.0,30908.0,0.09841]
[1609824743451,0.13632608,30916.0,30901.0,0.1284]
[1609824743654,0.13632608,30916.0,30888.0,0.276]
[1609824744054,0.13632608,30916.0,30915.0,0.13632608]
[1609824744552,0.13632608,30916.0,30911.0,0.10805]
[1609824747458,4.37002608,30916.0,30911.0,0.10805]
[1609824748058,0.13632608,30912.0,30911.0,0.10805]
[1609824748459,0.13632608,30912.0,30904.0,0.13632608]
[1609824750060,0.13632608,30905.0,30904.0,0.13632608]
[1609824750461,0.48560014,30911.0,30904.0,0.13632608]
[1609824750661,0.48560014,30911.0,30904.0,0.10693]
[1609824751062,0.13393,30928.0,30904.0,0.10693]
[1609824751261,0.2717,30935.0,30904.0,0.10693]
[1609824752061,0.13632608,30926.0,30919.0,0.13632608]
[1609824752462,0.4082,30935.0,30919.0,0.13632608]
[1609824752662,0.4082,30935.0,30919.0,0.29078608]
[1609824752863,0.1365,30935.0,30919.0,0.29078608]
[1609824753462,0.48514223,30940.0,30919.0,0.29078608]
[1609824753862,0.48514223,30940.0,30919.0,0.15446]
[1609824754365,0.13632608,30944.0,30938.0,0.13632608]
[1609824755064,0.13632608,30944.0,30933.0,0.12741]
[1609824755264,0.66382608,30944.0,30933.0,0.12741]
[1609824755865,0.76379608,30944.0,30919.0,0.15446]
[1609824756265,0.62747,30944.0,30931.0,0.13632608]
[1609824756465,0.62747,30944.0,30919.0,0.15446]
[1609824757866,0.62747,30944.0,30911.0,4.8014]
[1609824758267,0.62747,30944.0,30913.0,2.13699103]
[1609824758466,0.62747,30944.0,30913.0,2.24604103]
[1609824758666,0.62747,30944.0,30916.0,2.13685065]
[1609824759266,0.48496094,30952.0,30921.0,5.2327]
[1609824759470,0.48496094,30952.0,30921.0,5.37441]
[1609824760369,0.12647,30953.0,30949.0,0.13632608]
[1609824760571,0.279,30961.0,30949.0,0.13632608]
[1609824760971,0.57387735,30972.0,30949.0,0.13632608]
[1609824761973,0.55256631,30976.0,30949.0,0.13632608]
[1609824762172,0.92510697,30983.0,30960.0,4.5564]
[1609824762373,0.92510697,30983.0,30982.0,0.13632608]
[1609824762973,0.13632608,30997.0,30982.0,0.13632608]
[1609824763373,0.92903206,31009.0,30982.0,4.40075753]
[1609824763975,0.70888642,31014.0,30982.0,4.40075753]
[1609824764173,0.70888642,31014.0,30977.0,0.1429]
[1609824764373,4.9322,31006.0,30983.0,0.13632608]
[1609824764576,5.09332,31006.0,30977.0,0.1429]
[1609824765081,0.16112,31006.0,30977.0,0.1429]
[1609824765273,0.16112,31006.0,30978.0,4.5612]
[1609824765474,0.81336642,31014.0,30978.0,4.5612]
[1609824766474,0.13632608,30992.0,30988.0,0.13632608]
[1609824766674,0.81336642,31014.0,30978.0,4.5612]
[1609824766876,0.10448,31014.0,30978.0,4.5612]
[1609824768174,0.10448,31014.0,30977.0,0.1429]
[1609824768374,5.27958,31014.0,30987.0,0.13632608]
[1609824768575,5.27958,31014.0,30987.0,0.26919608]
[1609824768774,5.27958,31014.0,30987.0,0.13287]
[1609824769777,5.27958,31014.0,30979.0,0.1486]
[1609824770678,0.13632608,30980.0,30979.0,0.1486]
[1609824770879,5.27958,31014.0,30979.0,0.1486]
[1609824770880,0.14598,30993.0,30979.0,0.1486]
[1609824771978,5.27958,31014.0,30979.0,0.1486]
[1609824772579,5.27958,31014.0,30982.0,0.13632608]
[1609824773179,0.48401155,31013.0,30982.0,0.13632608]
[1609824773682,0.48401155,31013.0,30990.0,4.4688]
[1609824773881,0.48401155,31013.0,30990.0,4.57663]
[1609824774685,0.48401155,31013.0,31006.0,0.13632608]
[1609824774885,0.48401155,31013.0,31006.0,0.27783608]
[1609824775085,0.13632608,31017.0,31006.0,0.27783608]
[1609824775787,0.91474533,31031.0,31006.0,0.27783608]
[1609824775987,0.91474533,31031.0,31008.0,3.6208]
[1609824776386,0.91474533,31031.0,31006.0,0.27783608]
[1609824776587,0.10208,31038.0,31006.0,0.27783608]
[1609824776787,0.10208,31038.0,31018.0,0.13632608]
[1609824776987,0.10208,31038.0,31018.0,0.25827608]
[1609824778488,0.10208,31038.0,31018.0,0.12195]
[1609824778687,0.13632608,31019.0,31018.0,0.25827608]
[1609824780688,0.13632608,31019.0,31018.0,0.13632608]
[1609824780888,0.13632608,31019.0,31006.0,0.14151]
[1609824781088,0.13632608,31019.0,30990.0,0.10783]
[1609824781290,0.13632608,31019.0,30992.0,4.8956]
[1609824781690,0.13632608,31019.0,30992.0,5.02873]
[1609824781890,0.13632608,31019.0,30992.0,0.13313]
[1609824782689,0.13632608,30996.0,30992.0,0.13313]
[1609824784791,0.13979,31015.0,30992.0,0.13313]
[1609824785390,0.48419823,31001.0,30992.0,0.13313]
[1609824786192,0.13979,31015.0,30992.0,0.13313]
[1609824786591,0.13979,31015.0,30988.0,0.13632608]
[1609824786792,0.13632608,31003.0,30993.0,0.13632608]
[1609824787596,0.13632608,31003.0,30984.0,4.9045]
[1609824787894,0.13632608,31003.0,30979.0,0.1486]
[1609824788095,5.3782,30999.0,30959.0,5.3661]
[1609824790701,0.13632608,30967.0,30966.0,0.13632608]
[1609824792706,4.2882,30979.0,30966.0,0.13632608]
[1609824792905,0.2943,30990.0,30966.0,0.13632608]
[1609824793104,0.2943,30990.0,30966.0,0.23707608]
[1609824793704,0.48439847,30988.0,30966.0,0.23707608]
[1609824794505,4.5917,30985.0,30966.0,0.23707608]
[1609824794705,0.13632608,30973.0,30966.0,0.23707608]
[1609824795906,4.5917,30985.0,30966.0,0.23707608]
[1609824796807,0.2943,30990.0,30966.0,0.10075]
[1609824797007,3.7895,30985.0,30966.0,0.10075]
[1609824798007,3.7895,30985.0,30950.0,5.2577]
[1609824798707,0.13632608,30958.0,30953.0,0.13632608]
[1609824798909,0.13632608,30958.0,30917.0,2.09227008]
[1609824799109,0.13632608,30958.0,30933.0,4.6998]
[1609824799308,0.13632608,30958.0,30933.0,4.82295]
[1609824799509,0.13632608,30958.0,30933.0,0.12315]
[1609824800312,3.937,30963.0,30933.0,0.12315]
[1609824800510,3.937,30963.0,30934.0,0.6236]
[1609824800709,3.937,30963.0,30956.0,0.13632608]
[1609824800909,0.13632608,30965.0,30956.0,0.13632608]
[1609824801110,0.13632608,30965.0,30956.0,0.23724608]
[1609824801310,0.285,30984.0,30956.0,0.23724608]
[1609824802815,0.13632608,30966.0,30962.0,0.13632608]
[1609824803415,0.13632608,30966.0,30956.0,0.10092]
[1609824804916,0.13632608,30957.0,30956.0,0.10092]
[1609824805319,0.285,30984.0,30957.0,4.5906]
[1609824805817,0.40955,30990.0,30957.0,4.5906]
[1609824806626,0.10136,31000.0,30957.0,4.5906]
[1609824806822,0.13632608,30981.0,30975.0,0.13632608]
[1609824807622,0.1574,31008.0,30975.0,0.13632608]
[1609824807824,0.13979,31015.0,30975.0,0.26196608]
[1609824808029,0.56505106,31018.0,30978.0,5.0698]
[1609824808424,0.95252362,31019.0,30978.0,5.0698]
[1609824808626,0.2745,31019.0,30978.0,5.0698]
[1609824808823,0.13632608,30991.0,30978.0,5.0698]
[1609824809022,0.13632608,30991.0,30975.0,0.12564]
[1609824810723,0.13632608,30986.0,30984.0,0.13632608]
[1609824812524,0.13632608,30986.0,30975.0,0.12564]
[1609824812724,0.1312,31012.0,30982.0,0.13632608]
[1609824812927,0.1312,31012.0,30982.0,0.13083]
[1609824814126,0.56789691,31013.0,30982.0,0.13083]
[1609824814627,0.56808331,31010.0,30982.0,0.13083]
[1609824814827,0.13632608,30983.0,30982.0,0.13083]
[1609824816230,0.67154331,31010.0,30982.0,0.13083]
[1609824816831,0.13632608,30989.0,30988.0,0.13632608]
[1609824817632,0.67154331,31010.0,30988.0,0.13632608]
[1609824818833,0.13632608,31004.0,30994.0,0.13632608]
[1609824819735,0.13632608,31004.0,30994.0,0.80812608]
[1609824820636,0.13632608,31004.0,30994.0,0.13632608]
[1609824820837,0.56808331,31010.0,30982.0,0.13083]
[1609824821036,0.56808331,31010.0,30977.0,4.4667]
[1609824821238,0.56808331,31010.0,30988.0,0.13632608]
[1609824821436,0.56808331,31010.0,30988.0,0.28125608]
[1609824822236,0.56808331,31010.0,30988.0,0.14493]
[1609824823438,0.56808331,31010.0,31009.0,0.13632608]
[1609824824239,0.17948331,31010.0,31009.0,0.13632608]
[1609824825439,0.06547164,31012.0,31009.0,0.13632608]
[1609824826240,0.06547164,31012.0,31008.0,4.3824]
[1609824826641,0.06547164,31012.0,31011.0,3.8061]
[1609824826840,0.06547164,31012.0,31011.0,3.94335]
[1609824827441,0.06547164,31012.0,31011.0,4.07967608]
[1609824828841,1.30572871,31014.0,31011.0,4.07967608]
[1609824829641,1.04742871,31014.0,31011.0,4.07967608]
[1609824829845,1.32046583,31027.0,31013.0,3.9069]
[1609824830442,0.07975377,31018.0,31013.0,3.9069]
[1609824830643,1.32046583,31027.0,31013.0,3.9069]
[1609824831442,1.32046583,31027.0,31021.0,0.13632608]
[1609824831645,1.32046583,31027.0,31021.0,0.86442608]
[1609824831842,0.86805812,31022.0,31021.0,0.86442608]
[1609824832043,0.08217812,31022.0,31021.0,0.86442608]
[1609824832243,1.32046583,31027.0,31021.0,0.86442608]
[1609824832543,1.32046583,31027.0,31021.0,0.13632608]
[1609824832744,1.32046583,31027.0,31026.0,3.7869]
[1609824832943,1.01676583,31027.0,31026.0,3.7869]
[1609824833445,1.01676583,31027.0,31026.0,3.92322608]
[1609824833644,0.29622583,31027.0,31026.0,3.92322608]
[1609824833844,0.29622583,31027.0,31026.0,4.04321608]
[1609824834045,0.29622583,31027.0,31026.0,3.90689]
[1609824834646,0.2848,31058.0,31026.0,3.90689]
[1609824834647,1.57502805,31040.0,31026.0,3.90689]
[1609824835547,1.57502805,31040.0,31039.0,0.13632608]
[1609824835748,0.13632608,31069.0,31039.0,0.24139608]
[1609824835946,0.48284068,31088.0,31039.0,0.24139608]
[1609824836146,0.48284068,31088.0,31050.0,4.1443]
[1609824836347,5.0467,31117.0,31050.0,4.25426]
[1609824836547,0.2869,31106.0,31050.0,4.25426]
[1609824836748,0.6862,31104.0,31050.0,4.25426]
[1609824837448,0.13632608,31065.0,31063.0,0.13632608]
[1609824837647,0.23943608,31065.0,31063.0,0.13632608]
[1609824837847,0.23943608,31065.0,31051.0,4.0239]
[1609824838448,0.10311,31065.0,31051.0,4.0239]
[1609824839551,0.10311,31065.0,31064.0,0.13632608]
[1609824841154,0.10311,31065.0,31051.0,4.0239]
[1609824841553,0.11852,31072.0,31057.0,0.13632608]
[1609824841954,0.11852,31072.0,31062.0,3.714]
[1609824842352,0.11852,31072.0,31057.0,0.12657]
[1609824842753,0.2776,31077.0,31057.0,0.12657]
[1609824843654,0.2776,31077.0,31076.0,0.13632608]
[1609824843853,0.283,31095.0,31076.0,0.13632608]
[1609824844253,0.283,31095.0,31078.0,4.9843]
[1609824845656,0.283,31095.0,31090.0,0.13632608]
[1609824847657,0.283,31095.0,31094.0,0.13632608]
[1609824849960,0.283,31095.0,31089.0,0.13575]
[1609824850561,0.13632608,31102.0,31089.0,0.13575]
[1609824850961,0.13632608,31102.0,31078.0,4.9843]
[1609824851766,0.14042,31104.0,31078.0,4.9843]
[1609824853670,0.14042,31104.0,31090.0,0.13632608]
[1609824853671,0.13632608,31091.0,31090.0,0.13632608]
[1609824854769,0.13632608,31091.0,31078.0,4.9843]
[1609824855368,0.13632608,31091.0,31072.0,0.15659]
[1609824855569,0.13632608,31091.0,31062.0,5.1263]
[1609824855768,0.13632608,31080.0,31062.0,5.1263]
[1609824856669,0.14158,31096.0,31062.0,5.1263]
[1609824857771,0.14158,31096.0,31077.0,0.13632608]
[1609824858271,0.7526,31095.0,31077.0,0.13632608]
[1609824858571,0.7526,31095.0,31074.0,0.1087]
[1609824858971,0.7526,31095.0,31062.0,5.1263]
[1609824859871,0.13632608,31075.0,31057.0,0.12657]
[1609824860071,0.13632608,31075.0,31050.0,0.10996]
[1609824860370,0.13632608,31075.0,31048.0,3.8544]
[1609824860971,0.2859,31084.0,31048.0,3.8544]
[1609824861171,0.2859,31084.0,31048.0,4.01156]
[1609824861772,0.2859,31084.0,31083.0,0.13632608]
[1609824863975,0.2859,31084.0,31075.0,0.1076]
[1609824865578,0.2859,31084.0,31056.0,4.1159]
[1609824867877,0.13632608,31076.0,31070.0,0.13632608]
[1609824868276,0.13632608,31076.0,31056.0,4.1159]
[1609824869780,0.13632608,31076.0,31072.0,0.13632608]
[1609824875291,0.2859,31084.0,31072.0,0.13632608]
[1609824875892,0.2859,31084.0,31083.0,0.13632608]
[1609824876092,0.15909,31089.0,31083.0,0.13632608]
[1609824876293,0.13632608,31091.0,31083.0,0.13632608]
[1609824876492,0.14158,31096.0,31083.0,0.13632608]
[1609824876693,0.2752,31099.0,31083.0,0.29713608]
[1609824877393,4.9116,31116.0,31083.0,0.29713608]
[1609824877593,0.2737,31115.0,31083.0,0.29713608]
[1609824877994,0.2737,31115.0,31090.0,3.6029]
[1609824878198,0.2737,31115.0,31090.0,3.7439]
[1609824878393,0.13632608,31108.0,31103.0,0.13632608]
[1609824878795,0.39887,31115.0,31103.0,0.13632608]
[1609824879899,0.39887,31115.0,31099.0,0.14742]
[1609824880098,5.62937,31115.0,31099.0,0.14742]
[1609824880499,0.13632608,31100.0,31098.0,0.13632608]
[1609824881500,0.15147,31108.0,31098.0,0.13632608]
[1609824882503,0.15147,31108.0,31106.0,0.13632608]
[1609824883608,0.39887,31115.0,31106.0,0.13632608]
[1609824884503,0.13632608,31111.0,31110.0,0.13632608]
[1609824884904,0.13632608,31111.0,31097.0,0.15749]
[1609824885505,0.39887,31115.0,31097.0,0.15749]
[1609824886506,0.39887,31115.0,31108.0,0.13632608]
[1609824887106,4.3758,31113.0,31108.0,0.13632608]
[1609824887307,4.3758,31113.0,31097.0,0.15749]
[1609824888208,4.3758,31113.0,31090.0,0.141]
[1609824888406,4.3758,31113.0,31086.0,5.1253]
[1609824888806,0.13632608,31096.0,31095.0,0.13632608]
[1609824889006,0.11027,31104.0,31086.0,5.1253]
[1609824889206,0.11027,31104.0,31083.0,0.16081]
[1609824889406,0.11027,31104.0,31077.0,2.02060305]
[1609824890608,0.11027,31104.0,31077.0,1.73450305]
[1609824890810,0.13632608,31078.0,31077.0,1.87082913]